fUSD/lending_fUSD_20250610
["ID","MTS","AMOUNT","RATE_DAILY","PERIOD"]
[365239178,1749560901094,2698.87090986,0.00038573,60]
[365239179,1749560901392,2698.87090986,0.00038573,60]
[365239180,1749560921823,150.0,0.0002,30]
[365239181,1749560928751,419.63,0.00015535,2]
[365239182,1749560929305,-181.88352571,0.00016025,2]
[365239183,1749560931518,211.23,0.00015535,2]
[365239184,1749560944934,2504.01519457,0.00038573,60]
[365239185,1749560945272,2504.01519457,0.00038573,60]
[365239186,1749560945658,2504.01519457,0.00038573,60]
[365239187,1749560946149,150.90358967,0.00038573,60]
[365239188,1749560960233,-430.81845189,0.00016054,2]
[365239189,1749560960254,-851.95286966,0.00016125,2]
[365239190,1749560960275,-1977.25352396,0.00016144,2]
[365239191,1749560960297,-500.0,0.00016164,2]
[365239192,1749560960319,-500.0,0.00016164,2]
[365239193,1749560960341,-430.81845188,0.00016196,2]
[365239194,1749560960364,-851.95286966,0.00016257,2]
[365239195,1749560960386,-152.34,0.00016296,2]
[365239196,1749560960409,-300.0,0.00016337,2]
[365239197,1749560960432,-300.0,0.00016337,2]
[365239198,1749560960454,-430.81845188,0.00016338,2]
[365239199,1749560960477,-3184.87235559,0.00016338,2]
[365239200,1749560960505,-89.17302548,0.00016354,2]
[365239201,1749560961314,-210.82697452,0.00016354,2]
[365239202,1749560961339,-300.0,0.00016355,2]
[365239203,1749560961363,-1200.0,0.00016355,2]
[365239204,1749560961387,-736.03,0.00016356,2]
[365239205,1749560961410,-1701.75,0.00016356,2]
[365239206,1749560961432,-4981.0,0.00016356,2]
[365239207,1749560961455,-550.0,0.00016402,2]
[365239208,1749560961480,-209.3,0.00016403,2]
[365239209,1749560961504,-111.09302548,0.00016403,2]
[365239210,1749560961839,-10000.0,0.00016403,2]
[365239211,1749560962152,-10000.0,0.00016403,2]
[365239212,1749560962214,1000.0,0.00015741,2]
[365239213,1749560962759,-4364.31697452,0.00016403,2]
[365239214,1749560962782,-151.0,0.00016428,2]
[365239215,1749560962804,-500.0,0.00016437,2]
[365239216,1749560962826,-500.0,0.00016437,2]
[365239217,1749560962849,-391.88915587,0.00016437,2]
[365239218,1749560962875,-500.0,0.00016437,2]
[365239219,1749560962898,-500.0,0.00016437,2]
[365239220,1749560962920,-154.57168458,0.00016437,2]
[365239221,1749560962942,-359.0523417,0.00016437,2]
[365239222,1749560962964,-321.39690591,0.00016437,2]
[365239223,1749560962986,-500.0,0.00016437,2]
[365239224,1749560963007,-423.48800138,0.00016437,2]
[365239225,1749560963029,-500.0,0.00016437,2]
[365239226,1749560963052,-500.0,0.00016437,2]
[365239227,1749560963074,-334.28493604,0.00016437,2]
[365239228,1749560963132,-165.71506396,0.00016437,2]
[365239229,1749560963156,-500.0,0.00016437,2]
[365239230,1749560963179,-500.0,0.00016437,2]
[365239231,1749560963201,-500.0,0.00016437,2]
[365239232,1749560963225,-500.0,0.00016437,2]
[365239233,1749560963248,-500.0,0.00016437,2]
[365239234,1749560963271,-500.0,0.00016437,2]
[365239235,1749560963293,-500.0,0.00016437,2]
[365239236,1749560963315,-500.0,0.00016437,2]
[365239237,1749560963338,-276.76980068,0.00016437,2]
[365239238,1749560963360,-159.28435176,0.00016437,2]
[365239239,1749560963382,-328.21564824,0.00016437,2]
[365239240,1749560963404,-480.0,0.00016438,2]
[365239241,1749560963426,-490.0,0.00016438,2]
[365239242,1749560963447,-490.0,0.00016438,2]
[365239243,1749560963470,-490.0,0.00016438,2]
[365239244,1749560963491,-490.0,0.00016438,2]
[365239245,1749560963528,-490.0,0.00016438,2]
[365239246,1749560963554,-490.0,0.00016438,2]
[365239247,1749560963853,-490.0,0.00016438,2]
[365239248,1749560963874,-490.0,0.00016438,2]
[365239249,1749560963895,-480.0,0.00016438,2]
[365239250,1749560963917,-190.01513536,0.00016438,2]
[365239251,1749560963951,-289.98486464,0.00016438,2]
[365239252,1749560963975,-490.0,0.00016438,2]
[365239253,1749560963996,-490.0,0.00016438,2]
[365239254,1749560964017,-305.52167071,0.00016438,2]
[365239255,1749560964038,-490.0,0.00016438,2]
[365239256,1749560964060,-430.40253871,0.00016438,2]
[365239257,1749560964081,-490.0,0.00016438,2]
[365239258,1749560964105,-490.0,0.00016438,2]
[365239259,1749560964127,-490.0,0.00016438,2]
[365239260,1749560964148,-480.0,0.00016438,2]
[365239261,1749560964170,-490.0,0.00016438,2]
[365239262,1749560964192,-490.0,0.00016438,2]
[365239263,1749560964213,-480.0,0.00016438,2]
[365239264,1749560964236,-490.0,0.00016438,2]
[365239265,1749560964259,-490.0,0.00016438,2]
[365239266,1749560964282,-480.0,0.00016438,2]
[365239267,1749560964304,-490.0,0.00016438,2]
[365239268,1749560964326,-480.0,0.00016438,2]
[365239269,1749560964347,-490.0,0.00016438,2]
[365239270,1749560964370,-490.0,0.00016438,2]
[365239271,1749560964392,-480.0,0.00016438,2]
[365239272,1749560964415,-204.09092594,0.00016438,2]
[365239273,1749560964507,-285.90907406,0.00016438,2]
[365239274,1749560964530,-490.0,0.00016438,2]
[365239275,1749560964552,-490.0,0.00016438,2]
[365239276,1749560964573,-158.91544067,0.00016438,2]
[365239277,1749560964595,-480.0,0.00016438,2]
[365239278,1749560964616,-480.0,0.00016438,2]
[365239279,1749560964639,-490.0,0.00016438,2]
[365239280,1749560964661,-480.0,0.00016438,2]
[365239281,1749560964683,-490.0,0.00016438,2]
[365239282,1749560964705,-490.0,0.00016438,2]
[365239283,1749560964729,-490.0,0.00016438,2]
[365239284,1749560964753,-490.0,0.00016438,2]
[365239285,1749560964776,-480.0,0.00016438,2]
[365239286,1749560964799,-781.23,0.00016438,2]
[365239287,1749560964823,-486.80813811,0.00016438,2]
[365239288,1749560964846,-490.0,0.00016438,2]
[365239289,1749560964874,-490.0,0.00016438,2]
[365239290,1749560964898,-490.0,0.00016438,2]
[365239291,1749560964922,-490.0,0.00016438,2]
[365239292,1749560964944,-490.0,0.00016438,2]
[365239293,1749560964967,-487.13734716,0.00016438,2]
[365239294,1749560965287,-4.31265284,0.00016438,2]
[365239295,1749560965310,-478.72432793,0.00016438,2]
[365239296,1749560965332,-490.0,0.00016438,2]
[365239297,1749560965354,-480.0,0.00016438,2]
[365239298,1749560965376,-480.0,0.00016438,2]
[365239299,1749560965398,-256.22700541,0.00016438,2]
[365239300,1749560965421,-490.0,0.00016438,2]
[365239301,1749560965443,-480.0,0.00016438,2]
[365239302,1749560965466,-490.0,0.00016438,2]
[365239303,1749560965489,-490.0,0.00016438,2]
[365239304,1749560965512,-490.0,0.00016438,2]
[365239305,1749560965534,-490.0,0.00016438,2]
[365239306,1749560965559,-490.0,0.00016438,2]
[365239307,1749560965584,-490.0,0.00016438,2]
[365239308,1749560965606,-898.14079271,0.00016438,2]
[365239309,1749560965628,-490.0,0.00016438,2]
[365239310,1749560965650,-204.19762872,0.00016438,2]
[365239311,1749560965673,-490.0,0.00016438,2]
[365239312,1749560965695,-490.0,0.00016438,2]
[365239313,1749560965717,-490.0,0.00016438,2]
[365239314,1749560965741,-490.0,0.00016438,2]
[365239315,1749560965764,-348.39759239,0.00016438,2]
[365239316,1749560965804,-141.60240761,0.00016438,2]
[365239317,1749560965827,-490.0,0.00016438,2]
[365239318,1749560965851,-490.0,0.00016438,2]
[365239319,1749560965873,-490.0,0.00016438,2]
[365239320,1749560965895,-480.0,0.00016438,2]
[365239321,1749560965918,-490.0,0.00016438,2]
[365239322,1749560965939,-483.28582801,0.00016438,2]
[365239323,1749560965964,-490.0,0.00016438,2]
[365239324,1749560965987,-490.0,0.00016438,2]
[365239325,1749560966010,-490.0,0.00016438,2]
[365239326,1749560966032,-490.0,0.00016438,2]
[365239327,1749560966053,-251.44495403,0.00016438,2]
[365239328,1749560966078,-490.0,0.00016438,2]
[365239329,1749560966100,-490.0,0.00016438,2]
[365239330,1749560966124,-480.0,0.00016438,2]
[365239331,1749560966149,-490.0,0.00016438,2]
[365239332,1749560966171,-490.0,0.00016438,2]
[365239333,1749560966193,-490.0,0.00016438,2]
[365239334,1749560966215,-460.0,0.00016438,2]
[365239335,1749560966239,-490.0,0.00016438,2]
[365239336,1749560966264,-637.15,0.00016438,2]
[365239337,1749560966286,-206.51681035,0.00016438,2]
[365239338,1749560966325,-283.48318965,0.00016438,2]
[365239339,1749560966347,-490.0,0.00016438,2]
[365239340,1749560966367,-436.16961654,0.00016438,2]
[365239341,1749560966389,-480.0,0.00016438,2]
[365239342,1749560966411,-490.0,0.00016438,2]
[365239343,1749560966433,-404.0984547,0.00016438,2]
[365239344,1749560966456,-210.35219765,0.00016438,2]
[365239345,1749560966480,-490.0,0.00016438,2]
[365239346,1749560966502,-490.0,0.00016438,2]
[365239347,1749560966526,-490.0,0.00016438,2]
[365239348,1749560966548,-631.36,0.00016438,2]
[365239349,1749560966571,-490.0,0.00016438,2]
[365239350,1749560966594,-490.0,0.00016438,2]
[365239351,1749560966617,-480.0,0.00016438,2]
[365239352,1749560966640,-490.0,0.00016438,2]
[365239353,1749560966663,-490.0,0.00016438,2]
[365239354,1749560966686,-490.0,0.00016438,2]
[365239355,1749560966709,-490.0,0.00016438,2]
[365239356,1749560966733,-490.0,0.00016438,2]
[365239357,1749560966757,-490.0,0.00016438,2]
[365239358,1749560966780,-485.08255016,0.00016438,2]
[365239359,1749560966804,-219.4539913,0.00016438,2]
[365239360,1749560966915,-386.61874052,0.00016438,2]
[365239361,1749560966940,-490.0,0.00016438,2]
[365239362,1749560966963,-490.0,0.00016438,2]
[365239363,1749560966985,-490.0,0.00016438,2]
[365239364,1749560967006,-490.0,0.00016438,2]
[365239365,1749560967030,-490.0,0.00016438,2]
[365239366,1749560967054,-490.0,0.00016438,2]
[365239367,1749560967077,-490.0,0.00016438,2]
[365239368,1749560967103,-490.0,0.00016438,2]
[365239369,1749560967126,-480.0,0.00016438,2]
[365239370,1749560967150,-677.42,0.00016438,2]
[365239371,1749560967174,-549.91,0.00016438,2]
[365239372,1749560967199,-490.0,0.00016438,2]
[365239373,1749560967221,-181.1,0.00016438,2]
[365239374,1749560967243,-490.0,0.00016438,2]
[365239375,1749560967266,-400.0,0.00016438,2]
[365239376,1749560967288,-480.0,0.00016438,2]
[365239377,1749560967309,-490.0,0.00016438,2]
[365239378,1749560967330,-490.0,0.00016438,2]
[365239379,1749560967352,-484.37,0.00016438,2]
[365239380,1749560967376,-480.58125948,0.00016438,2]
[365239381,1749560967414,-590.65874052,0.00016438,2]
[365239382,1749560967436,-480.0,0.00016438,2]
[365239383,1749560967459,-490.0,0.00016438,2]
[365239384,1749560967482,-480.0,0.00016438,2]
[365239385,1749560967505,-490.0,0.00016438,2]
[365239386,1749560967528,-490.0,0.00016438,2]
[365239387,1749560967550,-490.0,0.00016438,2]
[365239388,1749560967574,-420.0,0.00016438,2]
[365239389,1749560967597,-490.0,0.00016438,2]
[365239390,1749560967620,-490.0,0.00016438,2]
[365239391,1749560967643,-480.0,0.00016438,2]
[365239392,1749560967667,-480.0,0.00016438,2]
[365239393,1749560967690,-480.0,0.00016438,2]
[365239394,1749560967990,-490.0,0.00016438,2]
[365239395,1749560968015,-490.0,0.00016438,2]
[365239396,1749560968039,-480.0,0.00016438,2]
[365239397,1749560968063,-490.0,0.00016438,2]
[365239398,1749560968086,-490.0,0.00016438,2]
[365239399,1749560968112,-490.0,0.00016438,2]
[365239400,1749560968136,-719.34125948,0.00016438,2]
[365239401,1749560968175,-8064.97874052,0.00016438,2]
[365239402,1749560968198,-493.19595743,0.00016438,2]
[365239403,1749560968222,-490.0,0.00016438,2]
[365239404,1749560968245,-480.0,0.00016438,2]
[365239405,1749560968271,-471.82530205,0.00016438,2]
[365239406,1749560969931,-18.17469795,0.00016438,2]
[365239407,1749560969956,-490.0,0.00016438,2]
[365239408,1749560969979,-480.0,0.00016438,2]
[365239409,1749560970003,-490.0,0.00016438,2]
[365239410,1749560970031,-480.0,0.00016438,2]
[365239411,1749560970056,-480.0,0.00016438,2]
[365239412,1749560970080,-480.0,0.00016438,2]
[365239413,1749560970108,-490.0,0.00016438,2]
[365239414,1749560970132,-480.0,0.00016438,2]
[365239415,1749560970157,-246.04019092,0.00016438,2]
[365239416,1749560970180,-480.0,0.00016438,2]
[365239417,1749560970205,-490.0,0.00016438,2]
[365239418,1749560970228,-471.72586713,0.00016438,2]
[365239419,1749560970250,-480.0,0.00016438,2]
[365239420,1749560970275,-490.0,0.00016438,2]
[365239421,1749560970297,-490.0,0.00016438,2]
[365239422,1749560970320,-490.0,0.00016438,2]
[365239423,1749560970343,-490.0,0.00016438,2]
[365239424,1749560970373,-480.0,0.00016438,2]
[365239425,1749560970399,-490.0,0.00016438,2]
[365239426,1749560970422,-480.0,0.00016438,2]
[365239427,1749560970445,-480.0,0.00016438,2]
[365239428,1749560970475,-54.059244,0.00016438,2]
[365239429,1749560970604,-435.940756,0.00016438,2]
[365239430,1749560970631,-490.0,0.00016438,2]
[365239431,1749560970656,-490.0,0.00016438,2]
[365239432,1749560970680,-490.0,0.00016438,2]
[365239433,1749560970704,-480.0,0.00016438,2]
[365239434,1749560970729,-480.0,0.00016438,2]
[365239435,1749560970754,-492.02940786,0.00016438,2]
[365239436,1749560970780,-600.11,0.00016438,2]
[365239437,1749560970803,-432.8986773,0.00016438,2]
[365239438,1749560970826,-490.0,0.00016438,2]
[365239439,1749560970849,-480.0,0.00016438,2]
[365239440,1749560970872,-490.0,0.00016438,2]
[365239441,1749560970896,-480.0,0.00016438,2]
[365239442,1749560970918,-480.0,0.00016438,2]
[365239443,1749560970943,-490.0,0.00016438,2]
[365239444,1749560970966,-480.0,0.00016438,2]
[365239445,1749560970990,-480.0,0.00016438,2]
[365239446,1749560971019,-516.01018504,0.00016438,2]
[365239447,1749560971044,-490.0,0.00016438,2]
[365239448,1749560971068,-480.0,0.00016438,2]
[365239449,1749560971093,-253.0109738,0.00016438,2]
[365239450,1749560971272,-500.0,0.00016437,2]
[365239451,1749560971295,-500.0,0.00016437,2]
[365239452,1749560971319,-500.0,0.00016437,2]
[365239453,1749560971345,-250.0,0.00016437,2]
[365239454,1749560971368,-500.0,0.00016437,2]
[365239455,1749560971392,-500.0,0.00016437,2]
[365239456,1749560971414,-500.0,0.00016437,2]
[365239457,1749560971436,-500.0,0.00016437,2]
[365239458,1749560971459,-236.9890262,0.00016438,2]
[365239459,1749560971483,-490.0,0.00016438,2]
[365239460,1749560971507,-299.21130927,0.00016438,2]
[365239461,1749560971530,-490.0,0.00016438,2]
[365239462,1749560971552,-490.0,0.00016438,2]
[365239463,1749560971575,-460.0,0.00016438,2]
[365239464,1749560971599,-490.0,0.00016438,2]
[365239465,1749560971626,-512.81,0.00016438,2]
[365239466,1749560971650,-490.0,0.00016438,2]
[365239467,1749560971674,-490.0,0.00016438,2]
[365239468,1749560971698,-490.0,0.00016438,2]
[365239469,1749560971723,-480.0,0.00016438,2]
[365239470,1749560971746,-490.0,0.00016438,2]
[365239471,1749560971769,-340.98966453,0.00016438,2]
[365239472,1749560972172,536.49552285,0.00038573,60]
[365239473,1749560972502,536.49552285,0.00038573,60]
[365239474,1749560972808,536.49552285,0.00038573,60]
[365239475,1749560975934,-500.0,0.00016437,2]
[365239476,1749560975957,-318.82437156,0.00016437,2]
[365239477,1749560975979,-376.59981134,0.00016437,2]
[365239478,1749560976003,-500.0,0.00016437,2]
[365239479,1749560976025,-139.01033547,0.00016438,2]
[365239480,1749560976049,-490.0,0.00016438,2]
[365239481,1749560976073,-490.0,0.00016438,2]
[365239482,1749560976096,-480.0,0.00016438,2]
[365239483,1749560976123,-1379.66,0.00016438,2]
[365239484,1749560976147,-480.0,0.00016438,2]
[365239485,1749560976171,-490.0,0.00016438,2]
[365239486,1749560976195,-490.0,0.00016438,2]
[365239487,1749560976219,-480.0,0.00016438,2]
[365239488,1749560976243,-490.0,0.00016438,2]
[365239489,1749560976268,-545.06,0.00016438,2]
[365239490,1749560976292,-490.0,0.00016438,2]
[365239491,1749560976316,-490.0,0.00016438,2]
[365239492,1749560976340,-480.0,0.00016438,2]
[365239493,1749560976363,-490.0,0.00016438,2]
[365239494,1749560976385,-400.84548163,0.00016438,2]
[365239495,1749560976424,-79.15451837,0.00016438,2]
[365239496,1749560976446,-490.0,0.00016438,2]
[365239497,1749560976468,-490.0,0.00016438,2]
[365239498,1749560976491,-490.0,0.00016438,2]
[365239499,1749560976515,-490.0,0.00016438,2]
[365239500,1749560976538,-490.0,0.00016438,2]
[365239501,1749560976561,-490.0,0.00016438,2]
[365239502,1749560976585,-490.0,0.00016438,2]
[365239503,1749560976608,-222.28,0.00016438,2]
[365239504,1749560976631,-490.0,0.00016438,2]
[365239505,1749560976654,-490.0,0.00016438,2]
[365239506,1749560976678,-490.0,0.00016438,2]
[365239507,1749560976706,-490.0,0.00016438,2]
[365239508,1749560976730,-537.63475063,0.00016438,2]
[365239509,1749560976754,-490.0,0.00016438,2]
[365239510,1749560976777,-490.0,0.00016438,2]
[365239511,1749560976801,-490.0,0.00016438,2]
[365239512,1749560976823,-480.0,0.00016438,2]
[365239513,1749560976846,-480.0,0.00016438,2]
[365239514,1749560976871,-1207.96,0.00016438,2]
[365239515,1749560976893,-132.970731,0.00016438,2]
[365239516,1749560977405,-357.029269,0.00016438,2]
[365239517,1749560977429,-490.0,0.00016438,2]
[365239518,1749560977454,-666.07,0.00016438,2]
[365239519,1749560977478,-722.06,0.00016438,2]
[365239520,1749560977501,-490.0,0.00016438,2]
[365239521,1749560977739,-480.0,0.00016438,2]
[365239522,1749560977763,-490.0,0.00016438,2]
[365239523,1749560977785,-480.0,0.00016438,2]
[365239524,1749560977808,-480.0,0.00016438,2]
[365239525,1749560977830,-490.0,0.00016438,2]
[365239526,1749560977852,-490.0,0.00016438,2]
[365239527,1749560977875,-490.0,0.00016438,2]
[365239528,1749560977898,-490.0,0.00016438,2]
[365239529,1749560977923,-490.0,0.00016438,2]
[365239530,1749560977946,-480.0,0.00016438,2]
[365239531,1749560977968,-490.0,0.00016438,2]
[365239532,1749560977990,-490.0,0.00016438,2]
[365239533,1749560978013,-592.99004197,0.00016438,2]
[365239534,1749560978037,-490.0,0.00016438,2]
[365239535,1749560978063,-351.85068903,0.00016438,2]
[365239536,1749560978100,4405.14,0.00015836,2]
[365239537,1749560990765,200.0,0.00038573,60]
[365239538,1749560991084,200.0,0.00038573,60]
[365239539,1749560995157,150.0,0.00015794,7]
[365239540,1749560998578,384.66555106,0.00038573,60]
[365239541,1749560998861,384.66555106,0.00038573,60]
[365239542,1749560999154,384.66555106,0.00038573,60]
[365239543,1749560999351,14557.35995587,0.00015794,2]
[365239544,1749560999373,1173.98004413,0.00015794,2]
[365239545,1749561003981,-300.0,0.00016436,2]
[365239546,1749561004010,-1200.0,0.00016436,2]
[365239547,1749561004039,-500.0,0.00016437,2]
[365239548,1749561004065,-500.0,0.00016437,2]
[365239549,1749561004091,-500.0,0.00016437,2]
[365239550,1749561004120,-500.0,0.00016437,2]
[365239551,1749561004145,-500.0,0.00016437,2]
[365239552,1749561004173,-500.0,0.00016437,2]
[365239553,1749561004198,-500.0,0.00016437,2]
[365239554,1749561004224,-500.0,0.00016437,2]
[365239555,1749561004250,-500.0,0.00016437,2]
[365239556,1749561004284,-454.51251032,0.00016437,2]
[365239557,1749561004310,-600.0,0.00016438,4]
[365239558,1749561004336,-684.28931097,0.00016438,2]
[365239559,1749561004362,-490.0,0.00016438,2]
[365239560,1749561004388,-480.0,0.00016438,2]
[365239561,1749561004415,-490.0,0.00016438,2]
[365239562,1749561004442,-490.0,0.00016438,2]
[365239563,1749561004469,-311.19817871,0.00016438,2]
[365239564,1749561005391,-300.0,0.00016437,2]
[365239565,1749561005416,-168.80182129,0.00016438,2]
[365239566,1749561005442,-490.0,0.00016438,2]
[365239567,1749561005466,-543.07,0.00016438,2]
[365239568,1749561005489,-176.22,0.00016438,2]
[365239569,1749561005517,-490.0,0.00016438,2]
[365239570,1749561005542,-490.0,0.00016438,2]
[365239571,1749561005569,-490.0,0.00016438,2]
[365239572,1749561005594,-490.0,0.00016438,2]
[365239573,1749561005624,-1391.13,0.00016438,2]
[365239574,1749561005651,-490.0,0.00016438,2]
[365239575,1749561005677,-490.0,0.00016438,2]
[365239576,1749561005705,-490.0,0.00016438,2]
[365239577,1749561005730,-490.0,0.00016438,2]
[365239578,1749561005755,-490.0,0.00016438,2]
[365239579,1749561005782,-490.0,0.00016438,2]
[365239580,1749561005805,-490.0,0.00016438,2]
[365239581,1749561005828,-490.0,0.00016438,2]
[365239582,1749561005854,-490.0,0.00016438,2]
[365239583,1749561005877,-490.0,0.00016438,2]
[365239584,1749561005904,-70.77817871,0.00016438,2]
[365239585,1749561005991,1009.65245314,0.00038573,60]
[365239586,1749561006240,1009.65245314,0.00038573,60]
[365239587,1749561006769,1009.65245314,0.00038573,60]
[365239588,1749561007835,-419.22182129,0.00016438,2]
[365239589,1749561007858,-490.0,0.00016438,2]
[365239590,1749561007880,-490.0,0.00016438,2]
[365239591,1749561007904,-490.0,0.00016438,2]
[365239592,1749561007926,-490.0,0.00016438,2]
[365239593,1749561007950,-490.0,0.00016438,2]
[365239594,1749561007972,-480.0,0.00016438,2]
[365239595,1749561007994,-490.0,0.00016438,2]
[365239596,1749561008019,-490.0,0.00016438,2]
[365239597,1749561008041,-552.25364586,0.00016438,2]
[365239598,1749561008064,-151.0,0.00016479,2]
[365239599,1749561008087,-151.0,0.00016483,2]
[365239600,1749561008110,-151.0,0.00016489,2]
[365239601,1749561009197,559.83,0.00016438,2]
[365239602,1749561010551,490.0,0.00016438,2]
[365239603,1749561011715,375.0,0.00016402,2]
[365239604,1749561013197,490.0,0.00016438,2]
[365239605,1749561013366,529.81287014,0.00016438,2]
[365239606,1749561013601,671.85,0.00016438,2]
[365239607,1749561014519,525.64925932,0.00038573,60]
[365239608,1749561014815,525.64925932,0.00038573,60]
[365239609,1749561015232,525.64925932,0.00038573,60]
[365239610,1749561015611,1051.807607,0.00016435,2]
[365239611,1749561018797,480.0,0.00016438,2]
[365239612,1749561021084,224.6841355,0.00038607,60]
[365239613,1749561021417,224.6841355,0.00038607,60]
[365239614,1749561021547,17.22405571,0.00016438,2]
[365239615,1749561021719,224.6841355,0.00038607,60]
[365239616,1749561026789,200.0,0.00038607,60]
[365239617,1749561027069,200.0,0.00038607,60]
[365239618,1749561027677,200.0,0.00038607,60]
[365239619,1749561029610,-500.0,0.00016164,2]
[365239620,1749561029634,-472.77594429,0.00016438,2]
[365239621,1749561029658,-669.41,0.00016438,2]
[365239622,1749561029682,-605.06,0.00016438,2]
[365239623,1749561029707,-490.0,0.00016438,2]
[365239624,1749561029732,-490.0,0.00016438,2]
[365239625,1749561029755,-397.39827747,0.00016438,2]
[365239626,1749561029781,-490.0,0.00016438,2]
[365239627,1749561029806,-490.0,0.00016438,2]
[365239628,1749561029830,-470.0,0.00016438,2]
[365239629,1749561029852,-480.0,0.00016438,2]
[365239630,1749561029876,-490.0,0.00016438,2]
[365239631,1749561030346,490.0,0.00016438,2]
[365239632,1749561030374,490.0,0.00016438,2]
[365239641,1749561031526,-151.0,0.00016518,2]
[365239642,1749561031537,-151.0,0.00016538,2]
[365239643,1749561031547,-151.0,0.00016543,2]
[365239644,1749561031557,-151.0,0.00016569,2]
[365239645,1749561031566,-151.0,0.00016593,2]
[365239646,1749561031575,-490.0,0.00016602,2]
[365239647,1749561031585,-490.0,0.00016602,2]
[365239648,1749561031594,-490.0,0.00016602,2]
[365239649,1749561031604,-490.0,0.00016602,2]
[365239650,1749561031613,-490.0,0.00016602,2]
[365239651,1749561031623,-490.0,0.00016602,2]
[365239652,1749561031633,-396.88735591,0.00016602,2]
[365239653,1749561031643,-490.0,0.00016602,2]
[365239654,1749561031652,-490.0,0.00016602,2]
[365239655,1749561031662,-490.0,0.00016602,2]
[365239656,1749561031672,-490.0,0.00016602,2]
[365239657,1749561031681,-494.93424112,0.00016602,2]
[365239658,1749561031691,-336.6132499,0.00016602,2]
[365239659,1749561031701,-490.0,0.00016602,2]
[365239660,1749561031710,-490.0,0.00016602,2]
[365239661,1749561031720,-433.82674609,0.00016602,2]
[365239662,1749561031729,-490.0,0.00016602,2]
[365239663,1749561031739,-781.23,0.00016602,2]
[365239664,1749561031749,-480.0,0.00016602,2]
[365239665,1749561031758,-490.0,0.00016602,2]
[365239666,1749561031768,-490.0,0.00016602,2]
[365239667,1749561031778,-490.0,0.00016602,2]
[365239668,1749561031787,-490.0,0.00016602,2]
[365239669,1749561031796,-490.0,0.00016602,2]
[365239670,1749561031805,-490.0,0.00016602,2]
[365239671,1749561031815,-490.0,0.00016602,2]
[365239672,1749561031824,-490.0,0.00016602,2]
[365239673,1749561031833,-490.0,0.00016602,2]
[365239674,1749561031843,-490.0,0.00016602,2]
[365239675,1749561031852,-490.0,0.00016602,2]
[365239676,1749561031862,-490.0,0.00016602,2]
[365239677,1749561031871,-490.0,0.00016602,2]
[365239678,1749561031880,-490.0,0.00016602,2]
[365239679,1749561031890,-490.0,0.00016602,2]
[365239680,1749561031899,-490.0,0.00016602,2]
[365239681,1749561031908,-490.0,0.00016602,2]
[365239682,1749561031918,-490.0,0.00016602,2]
[365239684,1749561031927,-490.0,0.00016602,2]
[365239685,1749561031936,-490.0,0.00016602,2]
[365239686,1749561031945,-279.01241862,0.00016602,2]